[Event "48th Indian U15-ch Open 2023"]
[Site "Jalgaon"]
[Date "2023.12.28"]
[Round "3.4"]
[White "Vivaan Vijay Saraogi"]
[Black "Guru Prakash"]
[Result "1/2-1/2"]
[WhiteElo "1982"]
[BlackElo "1701"]
[PlyCount "86"]
[EventDate "2023.12.30"]
[EventType "swiss"]
[EventCountry "IND"]
[TimeControl "5400+30"]

1. e4 {[%emt 0:00:15]} c5 {[%emt 0:00:01]} 2. Nf3 {[%emt 0:00:09]} e6 {[%emt 0:00:06]} 3. d4 {[%emt 0:00:06]} cxd4 {[%emt 0:00:03]} 4. Nxd4 {[%emt 0:00:07]} a6 {[%emt 0:00:28]} 5. Bd3 {[%emt 0:00:21]} Nf6 {[%emt 0:00:25]} 6. O-O {[%emt 0:01:06]} Qc7 {[%emt 0:00:04]} 7. Qe2 {[%emt 0:00:08]} d5 {[%emt 0:02:38]} 8. e5 {[%emt 0:31:10]} Nfd7 {[%emt 0:00:06]} 9. Bf4 {[%emt 0:05:14]} Nc5 {[%emt 0:08:53]} 10. Nc3 {[%emt 0:03:08]} Be7 {[%emt 0:02:11]} 11. Bg3 {[%emt 0:06:59]} Nc6 {[%emt 0:06:12]} 12. Nb3 {[%emt 0:05:22]} Nxd3 {[%emt 0:07:08]} 13. cxd3 {[%emt 0:00:03]} O-O {[%emt 0:00:33]} 14. Rac1 {[%emt 0:01:47]} Qb6 {[%emt 0:09:05]} 15. Kh1 {[%emt 0:17:44]} f6 {[%emt 0:06:55]} 16. exf6 {[%emt 0:00:22]} Bxf6 {[%emt 0:00:33]} 17. Na4 {[%emt 0:15:42]} Qd8 {[%emt 0:05:54]} 18. f4 {[%emt 0:04:01]} Na5 {[%emt 0:12:36]} 19. Nxa5 {[%emt 0:05:31]} Qxa5 {[%emt 0:00:02]} 20. b3 {[%emt 0:00:22]} b6 {[%emt 0:11:41]} 21. Rc7 {[%emt 0:00:52]} b5 {[%emt 0:04:48]} 22. Rfc1 {[%emt 0:00:28]} bxa4 {[%emt 0:06:25]} 23. Rxc8 {[%emt 0:00:05]} axb3 {[%emt 0:01:18]} 24. Qxe6+ {[%emt 0:00:15]} Kh8 {[%emt 0:00:01]} 25. Rxa8 {[%emt 0:00:28]} Rxa8 {[%emt 0:00:03]} 26. axb3 {[%emt 0:00:29]} h6 {[%emt 0:01:12]} 27. Be1 {[%emt 0:01:14]} Qb5 {[%emt 0:01:18]} 28. Rc8+ {[%emt 0:00:25]} Rxc8 {[%emt 0:00:01]} 29. Qxc8+ {[%emt 0:00:01]} Kh7 {[%emt 0:00:01]} 30. Qf5+ {[%emt 0:00:03]} Kh8 {[%emt 0:00:02]} 31. Qc8+ {[%emt 0:01:25]} Kh7 {[%emt 0:00:05]} 32. Qc2 {[%emt 0:00:08]} Bd4 {[%emt 0:00:38]} 33. h3 {[%emt 0:00:35]} Be3 {[%emt 0:01:13]} 34. Bg3 {[%emt 0:00:52]} d4 {[%emt 0:00:19]} 35. Kh2 {[%emt 0:00:31]} Qb8 {[%emt 0:01:08]} 36. Qc6 {[%emt 0:00:31]} Qxb3 {[%emt 0:00:29]} 37. Qxa6 {[%emt 0:00:27]} Qd1 {[%emt 0:00:54]} 38. h4 {[%emt 0:00:15]} Qg1+ {[%emt 0:00:55]} 39. Kh3 {[%emt 0:00:01]} Qh1+ {[%emt 0:00:13]} 40. Kg4 {[%emt 0:01:15]} Qd1+ {[%emt 0:00:17]} 41. Kh3 {[%emt 0:00:21]} Qh1+ {[%emt 0:00:16]} 42. Kg4 {[%emt 0:00:06]} Qxg2 {[%emt 0:01:48]} 43. h5 {[%emt 0:00:12]} Bf2 {[%emt 0:02:54]} 1/2-1/2

[Event "48th Indian U15-ch Open 2023"]
[Site "Jalgaon"]
[Date "2023.12.28"]
[Round "3.5"]
[White "Agnivo Chakraborty"]
[Black "Mrithyunjay Mahadevan"]
[Result "1/2-1/2"]
[WhiteElo "1690"]
[BlackElo "1944"]
[PlyCount "125"]
[EventDate "2023.12.30"]
[EventType "swiss"]
[EventCountry "IND"]
[TimeControl "5400+30"]

1. e4 {[%emt 0:00:03]} c5 {[%emt 0:00:19]} 2. Nf3 {[%emt 0:00:06]} e6 {[%emt 0:00:23]} 3. d4 {[%emt 0:00:05]} cxd4 {[%emt 0:00:04]} 4. Nxd4 {[%emt 0:00:06]} Nf6 {[%emt 0:00:05]} 5. Nc3 {[%emt 0:00:06]} Nc6 {[%emt 0:00:04]} 6. Ndb5 {[%emt 0:00:07]} d6 {[%emt 0:00:10]} 7. Bf4 {[%emt 0:00:16]} e5 {[%emt 0:00:05]} 8. Bg5 {[%emt 0:00:04]} a6 {[%emt 0:00:06]} 9. Na3 {[%emt 0:00:05]} b5 {[%emt 0:00:10]} 10. Bxf6 {[%emt 0:00:12]} gxf6 {[%emt 0:00:06]} 11. Nd5 {[%emt 0:00:05]} Bg7 {[%emt 0:08:27]} 12. Bd3 {[%emt 0:01:16]} O-O {[%emt 0:04:30]} 13. O-O {[%emt 0:00:41]} Be6 {[%emt 0:02:34]} 14. c4 {[%emt 0:01:11]} Nd4 {[%emt 0:02:45]} 15. Nc2 {[%emt 0:05:28]} bxc4 {[%emt 0:00:23]} 16. Bxc4 {[%emt 0:00:26]} Rc8 {[%emt 0:00:45]} 17. Nce3 {[%emt 0:08:37]} f5 {[%emt 0:05:42]} 18. exf5 {[%emt 0:05:19]} Nxf5 {[%emt 0:00:13]} 19. Bxa6 {[%emt 0:01:45]} Nxe3 {[%emt 0:00:40]} 20. Nxe3 {[%emt 0:02:03]} Rb8 {[%emt 0:03:18]} 21. Bc4 {[%emt 0:19:24]} Bxc4 {[%emt 0:01:54]} 22. Nxc4 {[%emt 0:00:33]} d5 {[%emt 0:00:06]} 23. Ne3 {[%emt 0:00:10]} d4 {[%emt 0:00:07]} 24. Nf5 {[%emt 0:06:32]} Rxb2 {[%emt 0:00:41]} 25. Qg4 {[%emt 0:00:19]} Qf6 {[%emt 0:00:15]} 26. Rfe1 {[%emt 0:04:42]} Re8 {[%emt 0:01:22]} 27. Nxg7 {[%emt 0:00:59]} Qxg7 {[%emt 0:03:20]} 28. Qxd4 {[%emt 0:00:16]} Reb8 {[%emt 0:03:05]} 29. Qc3 {[%emt 0:01:51]} f6 {[%emt 0:05:35]} 30. a4 {[%emt 0:00:49]} Qa7 {[%emt 0:03:37]} 31. Qf3 {[%emt 0:01:02]} Kg7 {[%emt 0:16:04]} 32. Red1 {[%emt 0:04:17]} R8b4 {[%emt 0:01:14]} 33. a5 {[%emt 0:05:31]} Rf4 {[%emt 0:01:23]} 34. Qg3+ {[%emt 0:00:08]} Kf7 {[%emt 0:00:09]} 35. Rf1 {[%emt 0:00:37]} h5 {[%emt 0:10:31]} 36. a6 {[%emt 0:02:10]} Rb6 {[%emt 0:06:20]} 37. Qd3 {[%emt 0:01:23]} Kg7 {[%emt 0:01:36]} 38. Ra2 {[%emt 0:03:34]} Rd4 {[%emt 0:00:43]} 39. Qe2 {[%emt 0:00:22]} Rbb4 {[%emt 0:03:25]} 40. h3 {[%emt 0:03:19]} h4 {[%emt 0:01:34]} 41. Rc1 {[%emt 0:00:50]} Ra4 {[%emt 0:00:58]} 42. Rca1 {[%emt 0:01:06]} Rab4 {[%emt 0:00:08]} 43. Qc2 {[%emt 0:01:37]} Rd6 {[%emt 0:01:04]} 44. Rc1 {[%emt 0:00:48]} e4 {[%emt 0:05:17]} 45. Qc7+ {[%emt 0:00:30]} Qxc7 {[%emt 0:00:06]} 46. Rcc2 {[%emt 0:00:07]} Qc6 47. Rxc6 {[%emt 0:00:30]} Kg6 {[%emt 0:00:33]} 48. Rc1 {[%emt 0:00:58]} Rb8 {[%emt 0:00:32]} 49. a7 {[%emt 0:00:04]} Ra8 {[%emt 0:00:05]} 50. Kf1 {[%emt 0:00:13]} Rd7 {[%emt 0:00:08]} 51. Rca1 {[%emt 0:00:05]} Kg5 {[%emt 0:00:27]} 52. Ke2 {[%emt 0:00:26]} Kf4 {[%emt 0:00:39]} 53. Ra6 {[%emt 0:03:41]} f5 {[%emt 0:00:23]} 54. R1a5 {[%emt 0:00:43]} Rad8 {[%emt 0:03:52]} 55. Ra1 {[%emt 0:02:09]} Ra8 {[%emt 0:00:26]} 56. R6a3 {[%emt 0:00:30]} Rc7 {[%emt 0:01:35]} 57. g3+ {[%emt 0:00:28]} hxg3 {[%emt 0:00:27]} 58. fxg3+ {[%emt 0:00:06]} Kg5 {[%emt 0:00:04]} 59. Ke3 {[%emt 0:00:38]} Rd7 {[%emt 0:00:06]} 60. R1a2 {[%emt 0:00:56]} Rh7 {[%emt 0:01:08]} 61. h4+ {[%emt 0:00:45]} Kg4 {[%emt 0:00:02]} 62. Kd4 {[%emt 0:01:33]} Re7 {[%emt 0:00:16]} 63. Rf2 {[%emt 0:06:20]} 1/2-1/2

[Event "48th Indian U15-ch Open 2023"]
[Site "Jalgaon"]
[Date "2023.12.28"]
[Round "3.6"]
[White "Samyak Dharewa"]
[Black "Shreyas Raj"]
[Result "1-0"]
[WhiteElo "1939"]
[BlackElo "1689"]
[PlyCount "33"]
[EventDate "2023.12.30"]
[EventType "swiss"]
[EventCountry "IND"]
[TimeControl "5400+30"]

1. e4 {[%emt 0:00:04]} c5 {[%emt 0:00:14]} 2. Nf3 {[%emt 0:00:04]} d6 {[%emt 0:00:19]} 3. d4 {[%emt 0:00:02]} cxd4 {[%emt 0:00:12]} 4. Nxd4 {[%emt 0:00:04]} Nf6 {[%emt 0:00:17]} 5. Nc3 {[%emt 0:00:03]} Nc6 {[%emt 0:00:22]} 6. Bg5 {[%emt 0:00:11]} g6 {[%emt 0:01:11]} 7. Bxf6 {[%emt 0:02:27]} exf6 {[%emt 0:00:12]} 8. Bc4 {[%emt 0:04:27]} a6 {[%emt 0:00:53]} 9. O-O {[%emt 0:02:09]} Bg7 {[%emt 0:01:27]} 10. Nde2 {[%emt 0:06:46]} O-O {[%emt 0:01:27]} 11. Qd2 {[%emt 0:01:06]} f5 {[%emt 0:07:34]} 12. Rad1 {[%emt 0:00:39]} fxe4 {[%emt 0:00:46]} 13. Nxe4 {[%emt 0:00:33]} Bxb2 {[%emt 0:01:58]} 14. c3 {[%emt 0:01:50]} Ba3 {[%emt 0:00:20]} 15. Qh6 {[%emt 0:00:25]} Re8 {[%emt 0:04:55]} 16. Ng5 {[%emt 0:01:29]} Ne5 {[%emt 0:00:37]} 17. Bxf7+ {[%emt 0:00:20]} 1-0

[Event "48th Indian U15-ch Open 2023"]
[Site "Jalgaon"]
[Date "2023.12.28"]
[Round "3.7"]
[White "Ashwinth Michael"]
[Black "Jihan Tejas Shah"]
[Result "1-0"]
[WhiteElo "1661"]
[BlackElo "1891"]
[PlyCount "185"]
[EventDate "2023.12.30"]
[EventType "swiss"]
[EventCountry "IND"]
[TimeControl "5400+30"]

1. e4 {[%emt 0:00:02]} c5 {[%emt 0:00:21]} 2. Nf3 {[%emt 0:00:08]} Nc6 {[%emt 0:00:07]} 3. Bb5 {[%emt 0:00:08]} g6 {[%emt 0:00:06]} 4. O-O {[%emt 0:00:21]} Bg7 {[%emt 0:00:03]} 5. Re1 {[%emt 0:00:44]} e5 {[%emt 0:01:20]} 6. Nc3 {[%emt 0:01:36]} Nge7 {[%emt 0:01:16]} 7. Nd5 {[%emt 0:03:14]} O-O {[%emt 0:01:20]} 8. d3 {[%emt 0:06:49]} h6 {[%emt 0:01:15]} 9. c3 {[%emt 0:04:29]} d6 {[%emt 0:02:19]} 10. Bxc6 {[%emt 0:02:10]} Nxc6 {[%emt 0:01:49]} 11. b3 {[%emt 0:07:42]} f5 {[%emt 0:05:36]} 12. Bb2 {[%emt 0:03:10]} Be6 {[%emt 0:04:06]} 13. Ne3 {[%emt 0:04:03]} Qd7 {[%emt 0:02:30]} 14. exf5 {[%emt 0:03:58]} gxf5 {[%emt 0:01:16]} 15. Rb1 {[%emt 0:05:28]} d5 {[%emt 0:03:18]} 16. Nd2 {[%emt 0:20:59]} Qf7 {[%emt 0:02:35]} 17. c4 {[%emt 0:03:11]} d4 {[%emt 0:02:11]} 18. Nef1 {[%emt 0:00:14]} Nb4 {[%emt 0:01:12]} 19. Qe2 {[%emt 0:02:02]} Nxa2 {[%emt 0:01:31]} 20. Ng3 {[%emt 0:00:09]} Bd7 {[%emt 0:01:59]} 21. Nf3 {[%emt 0:00:23]} Rfe8 {[%emt 0:01:19]} 22. Bxd4 {[%emt 0:01:48]} cxd4 {[%emt 0:00:34]} 23. Qxa2 {[%emt 0:00:07]} Bf6 {[%emt 0:03:43]} 24. Qd2 {[%emt 0:03:32]} Qg6 {[%emt 0:00:55]} 25. Qa5 {[%emt 0:04:55]} Bc6 {[%emt 0:08:45]} 26. Nxe5 {[%emt 0:06:55]} Bxe5 {[%emt 0:05:02]} 27. Rxe5 {[%emt 0:00:06]} f4 {[%emt 0:00:25]} 28. Rxe8+ {[%emt 0:00:25]} Rxe8 {[%emt 0:00:59]} 29. Qf5 {[%emt 0:00:05]} Qg5 {[%emt 0:05:54]} 30. Qxg5+ {[%emt 0:00:11]} hxg5 {[%emt 0:00:05]} 31. Nf5 {[%emt 0:00:05]} Re2 {[%emt 0:01:46]} 32. Nxd4 {[%emt 0:00:33]} Rd2 {[%emt 0:00:06]} 33. Nxc6 {[%emt 0:00:03]} bxc6 {[%emt 0:00:06]} 34. Kf1 {[%emt 0:00:02]} Rxd3 {[%emt 0:00:34]} 35. Ke2 {[%emt 0:00:06]} Rd7 {[%emt 0:00:12]} 36. Rd1 {[%emt 0:02:36]} Rb7 {[%emt 0:00:13]} 37. Rd3 {[%emt 0:00:07]} Kf7 {[%emt 0:02:05]} 38. Kf3 {[%emt 0:01:50]} Re7 {[%emt 0:03:41]} 39. h4 {[%emt 0:02:33]} Kf6 {[%emt 0:02:09]} 40. hxg5+ {[%emt 0:02:56]} Kxg5 {[%emt 0:00:11]} 41. g3 {[%emt 0:00:05]} fxg3 {[%emt 0:00:23]} 42. fxg3 {[%emt 0:00:20]} Re1 {[%emt 0:01:28]} 43. Re3 {[%emt 0:01:42]} Ra1 {[%emt 0:00:45]} 44. Ke4 {[%emt 0:00:43]} a5 {[%emt 0:01:07]} 45. Kd4 {[%emt 0:00:23]} Ra3 {[%emt 0:00:45]} 46. Kc3 {[%emt 0:02:30]} Ra1 {[%emt 0:00:20]} 47. Re6 {[%emt 0:00:30]} Rg1 {[%emt 0:03:02]} 48. Re3 {[%emt 0:02:32]} Ra1 {[%emt 0:00:32]} 49. Kd4 {[%emt 0:00:47]} Ra3 {[%emt 0:00:23]} 50. Kc5 {[%emt 0:00:54]} Kg4 {[%emt 0:00:27]} 51. Rd3 {[%emt 0:00:20]} Kh3 {[%emt 0:01:44]} 52. Kd4 {[%emt 0:02:36]} Kg4 {[%emt 0:00:30]} 53. Kc3 {[%emt 0:00:08]} Ra1 {[%emt 0:00:23]} 54. Rd6 {[%emt 0:00:05]} Rg1 {[%emt 0:03:46]} 55. Kb2 {[%emt 0:00:13]} Kf3 {[%emt 0:01:08]} 56. Rxc6 {[%emt 0:00:15]} Rxg3 {[%emt 0:00:07]} 57. Rc5 {[%emt 0:00:30]} a4 {[%emt 0:00:17]} 58. bxa4 {[%emt 0:00:11]} Ke4 {[%emt 0:00:29]} 59. Rd5 {[%emt 0:00:08]} Rg2+ {[%emt 0:01:05]} 60. Kb3 {[%emt 0:00:09]} Rg1 {[%emt 0:00:07]} 61. Rd2 {[%emt 0:01:03]} Ke3 {[%emt 0:01:20]} 62. Rd8 {[%emt 0:00:19]} Rb1+ {[%emt 0:00:59]} 63. Kc3 {[%emt 0:00:10]} Rc1+ {[%emt 0:00:24]} 64. Kb4 {[%emt 0:00:05]} Rb1+ {[%emt 0:00:03]} 65. Kc5 {[%emt 0:00:11]} Ra1 {[%emt 0:00:10]} 66. Kb5 {[%emt 0:00:05]} Rb1+ {[%emt 0:00:08]} 67. Kc6 {[%emt 0:00:13]} Ra1 {[%emt 0:00:24]} 68. c5 {[%emt 0:00:06]} Rxa4 {[%emt 0:00:03]} 69. Kb5 {[%emt 0:00:11]} Ra1 {[%emt 0:00:03]} 70. c6 {[%emt 0:00:05]} Rb1+ {[%emt 0:00:08]} 71. Ka6 {[%emt 0:00:06]} Ra1+ {[%emt 0:00:03]} 72. Kb7 {[%emt 0:00:04]} Rb1+ {[%emt 0:00:03]} 73. Kc8 {[%emt 0:00:05]} Ke4 {[%emt 0:00:12]} 74. c7 {[%emt 0:00:05]} Rc1 {[%emt 0:00:10]} 75. Kb7 {[%emt 0:00:16]} Rb1+ {[%emt 0:00:06]} 76. Kc6 {[%emt 0:00:17]} Rc1+ {[%emt 0:00:29]} 77. Kd6 {[%emt 0:00:07]} Rxc7 {[%emt 0:00:05]} 78. Kxc7 {[%emt 0:00:02]} Ke5 {[%emt 0:00:05]} 79. Kc6 {[%emt 0:00:05]} Ke4 {[%emt 0:00:03]} 80. Kc5 {[%emt 0:00:06]} Ke3 {[%emt 0:00:05]} 81. Rd4 {[%emt 0:00:06]} Kf3 {[%emt 0:00:03]} 82. Kd5 {[%emt 0:00:06]} Ke3 {[%emt 0:00:03]} 83. Ke5 {[%emt 0:00:04]} Kf3 {[%emt 0:00:02]} 84. Rd3+ {[%emt 0:00:08]} Ke2 {[%emt 0:00:08]} 85. Ke4 {[%emt 0:00:05]} Kf2 {[%emt 0:00:04]} 86. Re3 {[%emt 0:00:04]} Kg2 {[%emt 0:00:03]} 87. Kf4 {[%emt 0:00:07]} Kf2 {[%emt 0:00:03]} 88. Re5 {[%emt 0:00:05]} Kg2 {[%emt 0:00:02]} 89. Re2+ {[%emt 0:00:06]} Kf1 {[%emt 0:00:02]} 90. Kf3 {[%emt 0:00:06]} Kg1 {[%emt 0:00:02]} 91. Re1+ {[%emt 0:00:07]} Kh2 {[%emt 0:00:04]} 92. Ra1 {[%emt 0:00:03]} Kh3 {[%emt 0:00:02]} 93. Rh1# {[%emt 0:00:06]} 1-0

[Event "48th Indian U15-ch Open 2023"]
[Site "Jalgaon"]
[Date "2023.12.28"]
[Round "3.8"]
[White "Arshpreet Singh"]
[Black "Ghadge Harsh"]
[Result "1-0"]
[WhiteElo "1878"]
[BlackElo "1663"]
[PlyCount "80"]
[EventDate "2023.12.30"]
[EventType "swiss"]
[EventCountry "IND"]
[TimeControl "5400+30"]

1. e4 {[%emt 0:00:30]} c6 {[%emt 0:00:06]} 2. c4 {[%emt 0:00:04]} d5 {[%emt 0:00:08]} 3. exd5 {[%emt 0:00:06]} cxd5 {[%emt 0:00:03]} 4. cxd5 {[%emt 0:00:09]} Nf6 {[%emt 0:00:07]} 5. Bb5+ {[%emt 0:00:04]} Nbd7 {[%emt 0:00:05]} 6. Nc3 {[%emt 0:00:08]} a6 {[%emt 0:00:04]} 7. Ba4 {[%emt 0:00:06]} b5 {[%emt 0:01:21]} 8. Bb3 {[%emt 0:00:08]} Nb6 {[%emt 0:11:03]} 9. d4 {[%emt 0:01:54]} Bb7 {[%emt 0:02:40]} 10. Nf3 {[%emt 0:00:16]} Nbxd5 {[%emt 0:02:21]} 11. Nxd5 {[%emt 0:05:47]} Nxd5 {[%emt 0:05:14]} 12. O-O {[%emt 0:00:36]} e6 {[%emt 0:01:44]} 13. Ne5 {[%emt 0:00:59]} Be7 {[%emt 0:07:27]} 14. Qg4 {[%emt 0:01:16]} Bf6 {[%emt 0:00:55]} 15. Re1 {[%emt 0:05:17]} h5 {[%emt 0:06:05]} 16. Qf3 {[%emt 0:15:11]} Ra7 {[%emt 0:27:51]} 17. a4 {[%emt 0:43:02]} b4 {[%emt 0:05:14]} 18. a5 {[%emt 0:04:36]} Ne7 {[%emt 0:05:36]} 19. Qe2 {[%emt 0:05:16]} Bd5 {[%emt 0:10:06]} 20. Ba4+ {[%emt 0:00:39]} Kf8 {[%emt 0:00:08]} 21. Bd2 {[%emt 0:00:54]} Nf5 {[%emt 0:09:17]} 22. Bxb4+ {[%emt 0:00:27]} Kg8 {[%emt 0:00:07]} 23. Bc5 {[%emt 0:01:38]} Bxe5 {[%emt 0:00:20]} 24. Qxe5 {[%emt 0:04:47]} Qg5 {[%emt 0:01:37]} 25. Re4 {[%emt 0:03:52]} Ra8 {[%emt 0:02:20]} 26. Bd1 {[%emt 0:02:04]} Bxe4 {[%emt 0:00:46]} 27. Qxe4 {[%emt 0:00:06]} Rd8 {[%emt 0:00:33]} 28. Bb3 {[%emt 0:04:03]} Rh6 {[%emt 0:00:23]} 29. Bc4 {[%emt 0:00:13]} Nd6 {[%emt 0:00:40]} 30. Bxd6 {[%emt 0:00:36]} Rxd6 {[%emt 0:00:05]} 31. Qa8+ {[%emt 0:00:04]} Rd8 {[%emt 0:00:21]} 32. Qxa6 {[%emt 0:00:22]} Rxd4 {[%emt 0:00:27]} 33. Qa8+ {[%emt 0:01:11]} Kh7 {[%emt 0:00:11]} 34. Bf1 {[%emt 0:00:18]} Rf6 {[%emt 0:00:09]} 35. Qb8 {[%emt 0:00:37]} Rd2 {[%emt 0:00:57]} 36. Qg3 {[%emt 0:00:30]} Qc5 {[%emt 0:00:05]} 37. Qe3 {[%emt 0:00:29]} Qc2 {[%emt 0:00:24]} 38. a6 {[%emt 0:00:37]} Qxb2 {[%emt 0:01:36]} 39. Bd3+ {[%emt 0:00:31]} g6 {[%emt 0:00:22]} 40. Rf1 {[%emt 0:00:29]} Qc3 {[%emt 0:00:47]} 1-0

[Event "48th Indian U15-ch Open 2023"]
[Site "Jalgaon"]
[Date "2023.12.28"]
[Round "3.9"]
[White "Bhuvan Krishna Prasanth"]
[Black "Sureka Akshat"]
[Result "0-1"]
[WhiteElo "1595"]
[BlackElo "1808"]
[PlyCount "114"]
[EventDate "2023.12.30"]
[EventType "swiss"]
[EventCountry "IND"]
[TimeControl "5400+30"]

1. e4 {[%emt 0:00:04]} c5 {[%emt 0:00:33]} 2. Nf3 {[%emt 0:00:18]} d6 {[%emt 0:00:08]} 3. d4 {[%emt 0:00:32]} cxd4 {[%emt 0:00:06]} 4. Nxd4 {[%emt 0:00:06]} Nf6 {[%emt 0:00:03]} 5. Nc3 {[%emt 0:00:10]} a6 {[%emt 0:00:09]} 6. Be3 {[%emt 0:00:06]} e5 {[%emt 0:00:23]} 7. Nb3 {[%emt 0:00:28]} Be7 {[%emt 0:00:19]} 8. Be2 {[%emt 0:00:28]} Be6 {[%emt 0:00:18]} 9. Qd2 {[%emt 0:00:15]} Nbd7 {[%emt 0:00:37]} 10. O-O-O {[%emt 0:01:03]} b5 {[%emt 0:08:43]} 11. f3 {[%emt 0:03:53]} h5 {[%emt 0:00:25]} 12. h3 {[%emt 0:02:15]} h4 {[%emt 0:00:09]} 13. Kb1 {[%emt 0:01:25]} Nb6 {[%emt 0:08:44]} 14. Na5 {[%emt 0:00:21]} Qc7 {[%emt 0:09:29]} 15. a3 {[%emt 0:03:06]} Rb8 {[%emt 0:11:21]} 16. f4 {[%emt 0:08:25]} Nc4 {[%emt 0:02:41]} 17. Nxc4 {[%emt 0:00:27]} Bxc4 {[%emt 0:01:27]} 18. Bxc4 {[%emt 0:01:08]} bxc4 {[%emt 0:04:34]} 19. Ka1 {[%emt 0:01:38]} Qb7 {[%emt 0:01:29]} 20. Rb1 {[%emt 0:01:01]} Nxe4 {[%emt 0:02:47]} 21. Nxe4 {[%emt 0:00:27]} Qxe4 {[%emt 0:00:02]} 22. Rhe1 {[%emt 0:00:10]} Qc6 {[%emt 0:00:28]} 23. Bg1 {[%emt 0:04:15]} O-O {[%emt 0:05:40]} 24. fxe5 {[%emt 0:00:19]} dxe5 {[%emt 0:00:03]} 25. Rxe5 {[%emt 0:00:26]} Bf6 {[%emt 0:00:05]} 26. Rc5 {[%emt 0:00:06]} Qe6 {[%emt 0:08:29]} 27. c3 {[%emt 0:01:13]} Rb3 {[%emt 0:00:44]} 28. Bd4 {[%emt 0:01:42]} Be7 {[%emt 0:10:19]} 29. Re1 {[%emt 0:00:35]} Qd7 {[%emt 0:03:27]} 30. Rxc4 {[%emt 0:00:24]} Rfb8 {[%emt 0:00:41]} 31. Rb1 {[%emt 0:04:29]} Qb5 {[%emt 0:02:27]} 32. Rb4 {[%emt 0:01:36]} Bxb4 {[%emt 0:00:07]} 33. cxb4 {[%emt 0:00:09]} a5 {[%emt 0:01:06]} 34. Qd1 {[%emt 0:01:20]} Qa4 {[%emt 0:00:31]} 35. Ka2 {[%emt 0:00:42]} R3xb4 {[%emt 0:05:19]} 36. b3 {[%emt 0:00:10]} Rxb3 {[%emt 0:01:18]} 37. Rxb3 {[%emt 0:00:07]} Rxb3 {[%emt 0:00:04]} 38. Qxb3 {[%emt 0:00:08]} Qxd4 {[%emt 0:00:01]} 39. Qb8+ {[%emt 0:00:24]} Kh7 {[%emt 0:00:02]} 40. Qb5 {[%emt 0:00:31]} a4 {[%emt 0:01:50]} 41. Qf5+ {[%emt 0:00:06]} Kh6 {[%emt 0:01:08]} 42. Qxf7 {[%emt 0:00:12]} Qd2+ {[%emt 0:00:13]} 43. Ka1 {[%emt 0:00:30]} Qxg2 {[%emt 0:03:36]} 44. Qf4+ {[%emt 0:00:09]} Qg5 {[%emt 0:01:27]} 45. Qxa4 {[%emt 0:00:07]} Qc1+ {[%emt 0:00:03]} 46. Ka2 {[%emt 0:00:17]} Qd2+ {[%emt 0:00:05]} 47. Ka1 {[%emt 0:00:33]} Qe1+ {[%emt 0:00:18]} 48. Kb2 {[%emt 0:00:09]} Qe2+ {[%emt 0:00:20]} 49. Qc2 {[%emt 0:00:09]} Qxc2+ {[%emt 0:00:25]} 50. Kxc2 {[%emt 0:00:06]} g5 {[%emt 0:00:02]} 51. Kd2 {[%emt 0:00:36]} g4 {[%emt 0:00:54]} 52. Ke2 {[%emt 0:00:06]} Kg5 {[%emt 0:01:26]} 53. hxg4 {[%emt 0:00:14]} Kxg4 {[%emt 0:00:32]} 54. a4 {[%emt 0:00:30]} Kg3 {[%emt 0:00:23]} 55. a5 {[%emt 0:00:37]} h3 {[%emt 0:00:14]} 56. a6 {[%emt 0:01:30]} h2 {[%emt 0:00:02]} 57. a7 {[%emt 0:00:07]} h1=Q {[%emt 0:00:08]} 0-1

[Event "48th Indian U15-ch Open 2023"]
[Site "Jalgaon"]
[Date "2023.12.28"]
[Round "3.10"]
[White "Bhoir Paras Dilip"]
[Black "Sri Charan Sandipagu"]
[Result "1-0"]
[WhiteElo "1808"]
[BlackElo "1660"]
[PlyCount "87"]
[EventDate "2023.12.30"]
[EventType "swiss"]
[EventCountry "IND"]
[TimeControl "5400+30"]

1. e4 {[%emt 0:00:03]} c5 {[%emt 0:00:48]} 2. Nf3 {[%emt 0:00:08]} d6 {[%emt 0:00:07]} 3. d4 {[%emt 0:00:03]} cxd4 {[%emt 0:00:05]} 4. Nxd4 {[%emt 0:00:04]} Nf6 {[%emt 0:00:09]} 5. Nc3 {[%emt 0:00:04]} a6 {[%emt 0:00:09]} 6. Be2 {[%emt 0:00:05]} e5 {[%emt 0:00:06]} 7. Nb3 {[%emt 0:00:04]} Be7 {[%emt 0:00:08]} 8. O-O {[%emt 0:00:04]} O-O {[%emt 0:00:07]} 9. Kh1 {[%emt 0:00:03]} Nc6 {[%emt 0:00:07]} 10. f3 {[%emt 0:00:26]} Be6 {[%emt 0:03:30]} 11. Nd5 {[%emt 0:00:08]} Bxd5 {[%emt 0:03:01]} 12. exd5 {[%emt 0:00:06]} Nb8 {[%emt 0:00:05]} 13. c4 {[%emt 0:05:48]} Nbd7 {[%emt 0:00:32]} 14. f4 {[%emt 0:00:41]} Rc8 {[%emt 0:08:25]} 15. Be3 {[%emt 0:03:57]} exf4 {[%emt 0:08:58]} 16. Bxf4 {[%emt 0:05:35]} Re8 {[%emt 0:03:19]} 17. Rc1 {[%emt 0:04:34]} Ne4 {[%emt 0:16:29]} 18. Bd3 {[%emt 0:11:29]} Ndc5 {[%emt 0:16:14]} 19. Nxc5 {[%emt 0:08:49]} Nxc5 {[%emt 0:00:06]} 20. Bf5 {[%emt 0:03:44]} Nd7 {[%emt 0:00:56]} 21. b4 {[%emt 0:05:58]} a5 {[%emt 0:06:50]} 22. Qa4 {[%emt 0:03:41]} Nb6 {[%emt 0:05:11]} 23. Qb5 {[%emt 0:01:01]} Ra8 {[%emt 0:00:35]} 24. Be3 {[%emt 0:04:23]} Ra6 {[%emt 0:02:32]} 25. bxa5 {[%emt 0:00:47]} Na8 {[%emt 0:02:03]} 26. Qxb7 {[%emt 0:02:00]} Rxa5 {[%emt 0:03:51]} 27. Bd7 {[%emt 0:00:36]} Rf8 {[%emt 0:00:06]} 28. a4 {[%emt 0:00:09]} Bg5 {[%emt 0:02:01]} 29. Bxg5 {[%emt 0:04:42]} Qxg5 {[%emt 0:00:07]} 30. Be6 {[%emt 0:00:45]} Kh8 {[%emt 0:02:23]} 31. Ra1 {[%emt 0:00:28]} Qe5 {[%emt 0:02:05]} 32. Qe7 {[%emt 0:00:36]} Rb8 {[%emt 0:01:20]} 33. Qxf7 {[%emt 0:00:09]} h6 {[%emt 0:00:46]} 34. Rae1 {[%emt 0:00:05]} Qg5 {[%emt 0:01:18]} 35. Bf5 {[%emt 0:00:11]} Qd8 {[%emt 0:00:26]} 36. Qg6 {[%emt 0:00:05]} Qg8 {[%emt 0:00:10]} 37. Rf3 {[%emt 0:00:38]} Rf8 {[%emt 0:04:09]} 38. Be6 {[%emt 0:00:21]} Re8 {[%emt 0:00:30]} 39. Rff1 {[%emt 0:00:12]} Rxe6 {[%emt 0:00:46]} 40. dxe6 {[%emt 0:00:08]} Nc7 {[%emt 0:00:25]} 41. e7 {[%emt 0:00:06]} Ra8 {[%emt 0:00:06]} 42. Qxd6 {[%emt 0:00:07]} Ne8 {[%emt 0:00:26]} 43. Qd5 {[%emt 0:00:07]} Nf6 {[%emt 0:00:10]} 44. Rxf6 {[%emt 0:01:02]} 1-0